fUSD/lending_fUSD_20260415
["ID","MTS","AMOUNT","RATE_DAILY","PERIOD"]
[420526799,1776246633546,-500.0,0.00013573,2]
[420526800,1776246633562,-500.0,0.00013573,2]
[420526801,1776246633578,-151.0,0.00013587,2]
[420526802,1776246633590,-500.0,0.00013589,2]
[420526803,1776246633604,-500.0,0.00013589,2]
[420526804,1776246633620,-500.0,0.00013589,2]
[420526805,1776246633631,-500.0,0.00013589,2]
[420526806,1776246633642,-500.0,0.00013589,2]
[420526807,1776246633658,-500.0,0.00013589,2]
[420526808,1776246633673,-500.0,0.00013589,2]
[420526809,1776246633684,-500.0,0.00013589,2]
[420526810,1776246633701,-500.0,0.00013589,2]
[420526811,1776246633717,-500.0,0.00013589,2]
[420526812,1776246633758,-500.0,0.00013589,2]
[420526813,1776246633772,-500.0,0.00013589,2]
[420526814,1776246633791,-500.0,0.00013589,2]
[420526815,1776246633811,-500.0,0.00013589,2]
[420526816,1776246633823,-500.0,0.00013589,2]
[420526817,1776246633842,-500.0,0.00013589,2]
[420526818,1776246633857,-500.0,0.00013589,2]
[420526819,1776246633871,-500.0,0.00013589,2]
[420526820,1776246633895,-500.0,0.00013589,2]
[420526821,1776246633907,-500.0,0.00013589,2]
[420526822,1776246633926,-500.0,0.00013589,2]
[420526823,1776246633946,-486.94377004,0.00013589,2]
[420526824,1776246633961,-500.0,0.00013589,2]
[420526825,1776246633979,-500.0,0.00013589,2]
[420526826,1776246633995,-500.0,0.00013589,2]
[420526827,1776246634011,-500.0,0.00013589,2]
[420526828,1776246634029,-500.0,0.00013589,2]
[420526829,1776246634043,-500.0,0.00013589,2]
[420526830,1776246634062,-500.0,0.00013589,2]
[420526831,1776246634078,-500.0,0.00013589,2]
[420526832,1776246634093,-267.37489091,0.00013589,2]
[420526833,1776246634106,-500.0,0.00013589,2]
[420526834,1776246634118,-500.0,0.00013589,2]
[420526835,1776246634132,-500.0,0.00013589,2]
[420526836,1776246634148,-500.0,0.00013589,2]
[420526837,1776246634159,-500.0,0.00013589,2]
[420526838,1776246634173,-500.0,0.00013589,2]
[420526839,1776246634187,-500.0,0.00013589,2]
[420526840,1776246634202,-500.0,0.00013589,2]
[420526841,1776246634218,-500.0,0.00013589,2]
[420526842,1776246634234,-500.0,0.00013589,2]
[420526843,1776246634250,-500.0,0.00013589,2]
[420526844,1776246634269,-500.0,0.00013589,2]
[420526845,1776246634284,-500.0,0.00013589,2]
[420526846,1776246634299,-500.0,0.00013589,2]
[420526847,1776246634314,-500.0,0.00013589,2]
[420526848,1776246634325,-648.694377,0.00013589,2]
[420526849,1776246634345,-500.0,0.00013589,2]
[420526850,1776246634361,-500.0,0.00013589,2]
[420526851,1776246634372,-500.0,0.00013589,2]
[420526852,1776246634389,-500.0,0.00013589,2]
[420526853,1776246634405,-500.0,0.00013589,2]
[420526854,1776246634420,-500.0,0.00013589,2]
[420526855,1776246634433,-500.0,0.00013589,2]
[420526856,1776246634450,-500.0,0.00013589,2]
[420526857,1776246634461,-436.33945282,0.00013589,2]
[420526858,1776246634483,-500.0,0.00013589,2]
[420526859,1776246634498,-500.0,0.00013589,2]
[420526860,1776246634508,-501.5614773,0.00013589,2]
[420526861,1776246634528,-500.0,0.00013589,2]
[420526862,1776246634544,-501.54872907,0.00013589,2]
[420526863,1776246634554,-500.0,0.00013589,2]
[420526864,1776246634571,-500.0,0.00013589,2]
[420526865,1776246634583,-350.0,0.00013589,2]
[420526866,1776246634594,-501.93589466,0.00013589,2]
[420526867,1776246634611,-500.0,0.00013589,2]
[420526868,1776246634627,-500.0,0.00013589,2]
[420526869,1776246634637,-337.03587319,0.00013589,2]
[420526870,1776246634656,-500.0,0.00013589,2]
[420526871,1776246634671,-500.0,0.00013589,2]
[420526872,1776246634681,-500.0,0.00013589,2]
[420526873,1776246634700,-500.0,0.00013589,2]
[420526874,1776246634716,-501.31293655,0.00013589,2]
[420526875,1776246634725,-630.0,0.00013589,2]
[420526876,1776246634739,-500.0,0.00013589,2]
[420526877,1776246634759,-500.0,0.00013589,2]
[420526878,1776246634770,-500.0,0.00013589,2]
[420526879,1776246634783,-500.0,0.00013589,2]
[420526880,1776246634796,-500.0,0.00013589,2]
[420526881,1776246634808,-569.89636165,0.00013589,2]
[420526882,1776246634822,-500.0,0.00013589,2]
[420526883,1776246634833,-500.0,0.00013589,2]
[420526884,1776246634853,-500.0,0.00013589,2]
[420526885,1776246634865,-300.0,0.00013589,2]
[420526886,1776246634878,-500.0,0.00013589,2]
[420526887,1776246634897,-500.0,0.00013589,2]
[420526888,1776246634906,-500.0,0.00013589,2]
[420526889,1776246634921,-500.0,0.00013589,2]
[420526890,1776246634936,-500.0,0.00013589,2]
[420526891,1776246634948,-300.0,0.00013589,2]
[420526892,1776246634959,-300.0,0.00013589,2]
[420526893,1776246634970,-250.0,0.00013589,2]
[420526894,1776246634989,-155.01953092,0.00013589,2]
[420526895,1776246634998,-153.72359232,0.00013589,2]
[420526896,1776246635011,-150.0,0.00013589,2]
[420526897,1776246635021,-86351.3074097,0.0001359,2]
[420526898,1776246637220,-72950.84194484,0.0001359,2]
[420526899,1776246637241,-43484.84358216,0.0001359,2]
[420526900,1776246637285,-487.38503545,0.0001359,2]
[420526934,1776246639454,-1017.91905895,0.0001359,2]
[420526935,1776246639467,-1624.93563885,0.0001359,2]
[420526973,1776246646747,-1000.0,0.00013429,2]
[420526974,1776246646944,-337.96186283,0.0001358,2]
[420526975,1776246647049,-839.03813717,0.0001359,2]
[420526980,1776246749507,1759.48,0.00016124,30]
[420526997,1776247831922,-3813.88023045,0.000102,3]
[420526998,1776247832257,-1471.11976955,0.000102,3]
[420526999,1776247832272,-3813.88023,0.00010395,2]
[420527000,1776247832288,-1200.0,0.00010399,2]
[420527001,1776247832301,-300.0,0.00010399,2]
[420527002,1776247832311,-5532.0,0.000104,5]
[420527003,1776247832321,-250.0,0.00010573,2]
[420527004,1776247832336,-150.0,0.00010699,2]
[420527005,1776247832348,-68999.4696741,0.000107,2]
[420527021,1776247839859,-7278.16260557,0.000107,2]
[420527052,1776247840515,-19797.90920982,0.000107,2]
[420527054,1776247840540,-6975.43726294,0.00011339,2]
[420527056,1776247840555,-615.0,0.00011439,2]
[420527058,1776247840580,-250.0,0.00011601,2]
[420527060,1776247840592,-1338.44,0.00012567,2]
[420527063,1776247840616,-2000.0,0.00012581,2]
[420527064,1776247840627,-1708.02,0.00012625,2]
[420527066,1776247840652,-1852.42,0.00012625,2]
[420527069,1776247840670,-150.0,0.00012625,2]
[420527071,1776247840684,-175.61,0.00012625,2]
[420527088,1776247841308,-324.37,0.00012999,2]
[420527089,1776247841322,-250.0,0.00013,2]
[420527090,1776247841333,-167.15,0.00013026,2]
[420527091,1776247841346,-2500.0,0.0001329,2]
[420527092,1776247841358,-4212.78484536,0.0001329,2]
[420527093,1776247841371,-167.25052839,0.00013325,2]
[420527094,1776247841381,-500.0,0.00013373,2]
[420527095,1776247841392,-500.0,0.00013373,2]
[420527096,1776247841405,-500.0,0.00013389,2]
[420527097,1776247841415,-500.0,0.00013389,2]
[420527098,1776247841425,-500.0,0.00013389,2]
[420527099,1776247841439,-500.0,0.00013389,2]
[420527100,1776247841450,-500.0,0.00013389,2]
[420527101,1776247841461,-500.0,0.00013389,2]
[420527102,1776247841472,-500.0,0.00013389,2]
[420527103,1776247841485,-500.0,0.00013389,2]
[420527104,1776247841496,-500.0,0.00013389,2]
[420527105,1776247841509,-500.0,0.00013389,2]
[420527106,1776247841520,-500.0,0.00013389,2]
[420527107,1776247841540,-290.81426323,0.00013389,2]
[420527108,1776247841551,-500.0,0.00013389,2]
[420527109,1776247841563,-13762.6123,0.0001339,2]
[420527110,1776247841574,-248366.46870784,0.0001339,2]
[420527115,1776247843197,-417.0,0.0001339,2]
[420527124,1776247846105,-6543.19934267,0.0001339,2]
[420527129,1776248180736,800.48649981,8.778e-05,2]
[420527130,1776248181127,803.57286162,8.778e-05,2]
[420527154,1776249031956,-647.20092089,0.00012257,2]
[420527155,1776249031991,-332.0,0.00012257,2]
[420527156,1776249032022,-195.0,0.00012291,2]
[420527157,1776249032064,-1600.0,0.00012326,2]
[420527158,1776249032130,-557.35316166,0.00012342,2]
[420527159,1776249032177,-442.64683834,0.00012342,2]
[420527160,1776249032221,-439.67240937,0.00012343,2]
[420527161,1776249032278,-1667.75473326,0.00012343,2]
[420527169,1776249032722,-2174.50212326,0.00012343,2]
[420527171,1776249032733,-491.5847794,0.00012343,2]
[420527175,1776249032757,-2831.0,0.00012343,2]
[420527213,1776249039409,-801.84755,0.00012343,2]
[420527215,1776249039421,-372.73608226,0.00012343,2]
[420527218,1776249039432,-767.54052114,0.00012343,2]
[420527220,1776249039446,-1290.08569442,0.00012343,2]
[420527224,1776249039500,-3460.0,0.00012343,2]
[420527227,1776249040494,-92356.80610689,0.00012343,2]
[420527228,1776249040508,-500.0,0.00012357,2]
[420527229,1776249040518,-224.48,0.00012578,2]
[420527230,1776249040528,-1156.3277577,0.00012596,2]
[420527231,1776249040546,-6441.9211237,0.00012596,2]
[420527232,1776249040556,-200.0,0.00012625,2]
[420527233,1776249040566,-5003.25,0.00012998,2]
[420527234,1776249040582,-867.48,0.00012998,2]
[420527235,1776249040597,-9999.99,0.00012998,2]
[420527236,1776249040608,-9999.99,0.00012998,2]
[420527237,1776249040621,-150.99,0.00012998,2]
[420527238,1776249040643,-250.0,0.00013,2]
[420527239,1776249040658,-2138.41317938,0.00013088,2]
[420527241,1776249040855,-808.0336,0.00013088,2]
[420527249,1776249042972,-252.82151545,0.00013088,2]
[420527250,1776249042984,-592.23806594,0.00013088,2]
[420527251,1776249042993,-3142.83862736,0.00013188,2]
[420527252,1776249043030,-783.45621829,0.00013188,2]
[420527253,1776249043292,-316.220239,0.00013188,2]
[420527254,1776249043369,-327.365286,0.00013188,2]
[420527255,1776249045965,-14035.45352238,0.00013188,2]
[420527256,1776249046047,-9656.04356946,0.00013188,2]
[420527257,1776249046320,-7036.33059991,0.00013188,2]
[420527258,1776249046353,-5695.31800994,0.00013188,2]
[420527259,1776249046441,-6543.19934267,0.00013188,2]
[420527293,1776249966331,-3473.73886005,0.00012239,2]
[420527294,1776249966356,-332.0,0.00012239,2]
[420527295,1776249966379,-195.0,0.0001224,2]
[420527296,1776249971287,1349.79,0.00012144,2]
[420527298,1776250004000,-151.0,0.0001224,2]
[420527299,1776250004023,-151.0,0.0001224,2]
[420527300,1776250004049,-300.0,0.00012242,2]
[420527301,1776250004076,-16067.47113995,0.00012243,2]
[420527324,1776250233336,-300.0,0.00012142,2]
[420527325,1776250233348,-300.0,0.00012142,2]
[420527326,1776250233358,-338.55,0.00012142,2]
[420527327,1776250233390,-861.45,0.00012142,2]
[420527328,1776250233402,-300.0,0.00012142,2]
[420527329,1776250233413,-51224.4074,0.00012143,2]
[420527330,1776250233423,-150.0,0.00012242,2]
[420527331,1776250233434,-15656.4826,0.00012243,2]
[420527332,1776250233449,-123202.73276005,0.00012243,2]
[420527333,1776250233460,-1006.8,0.00012339,2]
[420527334,1776250233470,-16510.62,0.00012387,2]
[420527335,1776250233482,-9540.88,0.00012407,2]
[420527336,1776250233492,-4999.99,0.00012407,2]
[420527337,1776250233502,-632.55,0.00012407,2]
[420527338,1776250233513,-1572.71,0.00012407,2]
[420527339,1776250233523,-299.99,0.00012407,2]
[420527340,1776250233533,-150.99,0.00012407,2]
[420527341,1776250233543,-5247.22,0.00012407,2]
[420527342,1776250233553,-2682.73774522,0.00012596,2]
[420527343,1776250233563,-846.25946515,0.00012596,2]
[420527344,1776250233573,-9999.99,0.00012596,2]
[420527345,1776250233582,-1555.35886815,0.00012596,2]
[420527346,1776250233593,-228.16311447,0.00012596,2]
[420527347,1776250233603,-1758.1112595,0.00012643,2]
[420527348,1776250233613,-3304.4637123,0.00012643,2]
[420527349,1776250233624,-218.91377965,0.00012675,2]
[420527350,1776250233634,-150.52850886,0.00012938,2]
[420527351,1776250233645,-3753.05771276,0.00012987,2]
[420527352,1776250233655,-11278.62076885,0.00012988,2]
[420527353,1776250233666,-987.12883571,0.00013013,2]
[420527354,1776250233676,-151.0,0.00013072,2]
[420527355,1776250233687,-500.0,0.00013072,2]
[420527356,1776250233697,-174.61919141,0.00013072,2]
[420527357,1776250233708,-235.75327194,0.00013072,2]
[420527358,1776250233718,-244.476143,0.00013072,2]
[420527359,1776250233730,-375.30024499,0.00013072,2]
[420527360,1776250233740,-500.0,0.00013073,2]
[420527361,1776250233750,-500.0,0.00013073,2]
[420527362,1776250233760,-500.0,0.00013073,2]
[420527363,1776250233772,-500.0,0.00013073,2]
[420527364,1776250233783,-500.0,0.00013073,2]
[420527365,1776250233793,-500.0,0.0001308,2]
[420527366,1776250233805,-151.0,0.0001308,2]
[420527367,1776250233815,-200.0,0.0001308,2]
[420527368,1776250233825,-500.0,0.0001308,2]
[420527369,1776250233835,-151.0,0.0001308,2]
[420527370,1776250233847,-151.0,0.0001308,2]
[420527371,1776250233857,-151.0,0.0001308,2]
[420527372,1776250233868,-1428.38747117,0.0001308,2]
[420527373,1776250233879,-151.0,0.0001308,2]
[420527374,1776250233890,-151.0,0.0001308,2]
[420527375,1776250233902,-151.0,0.0001308,2]
[420527376,1776250233912,-151.0,0.0001308,2]
[420527377,1776250233922,-151.0,0.0001308,2]
[420527378,1776250233934,-500.0,0.0001308,2]
[420527379,1776250233944,-151.0,0.0001308,2]
[420527380,1776250233954,-500.0,0.0001308,2]
[420527381,1776250233964,-151.0,0.0001308,2]
[420527382,1776250233975,-500.0,0.0001308,2]
[420527383,1776250233986,-500.0,0.0001308,2]
[420527384,1776250233996,-500.0,0.0001308,2]
[420527385,1776250234006,-500.0,0.0001308,2]
[420527386,1776250234018,-500.0,0.0001308,2]
[420527387,1776250234028,-200.0,0.0001308,2]
[420527388,1776250234038,-500.0,0.0001308,2]
[420527389,1776250234049,-500.0,0.0001308,2]
[420527390,1776250234060,-859.80605061,0.0001308,2]
[420527391,1776250234071,-500.0,0.0001308,2]
[420527392,1776250234081,-151.0,0.0001308,2]
[420527393,1776250234092,-151.0,0.0001308,2]
[420527394,1776250234102,-151.0,0.0001308,2]
[420527395,1776250234112,-151.0,0.0001308,2]
[420527396,1776250234122,-151.0,0.0001308,2]
[420527397,1776250234132,-151.0,0.0001308,2]
[420527398,1776250234143,-151.0,0.0001308,2]
[420527399,1776250234154,-151.0,0.0001308,2]
[420527400,1776250234164,-151.0,0.0001308,2]
[420527401,1776250234175,-151.0,0.0001308,2]
[420527402,1776250234186,-151.0,0.0001308,2]
[420527403,1776250234198,-151.0,0.0001308,2]
[420527404,1776250234208,-151.0,0.0001308,2]
[420527405,1776250234218,-151.0,0.0001308,2]
[420527406,1776250234229,-151.0,0.0001308,2]
[420527407,1776250234241,-151.0,0.0001308,2]
[420527408,1776250234252,-162.99957244,0.0001308,2]
[420527409,1776250234263,-284.98537719,0.0001308,2]
[420527410,1776250234273,-2721.3711681,0.00013083,2]
[420527411,1776250234286,-166.052132,0.00013085,2]
[420527412,1776250234298,-500.0,0.00013085,2]
[420527413,1776250234310,-389.64144012,0.00013085,2]
[420527414,1776250234320,-500.0,0.00013085,2]
[420527415,1776250234338,-500.0,0.00013085,2]
[420527416,1776250234350,-500.0,0.00013085,2]
[420527417,1776250234363,-158.205,0.00013086,2]
[420527418,1776250234374,-151.0,0.00013086,2]
[420527419,1776250234387,-151.0,0.00013086,2]
[420527420,1776250234398,-151.0,0.00013086,2]
[420527421,1776250234413,-151.0,0.00013086,2]
[420527422,1776250234429,-173.337096,0.00013086,2]
[420527423,1776250234442,-615.32879798,0.00013087,2]
[420527424,1776250234458,-151.0,0.00013087,2]
[420527425,1776250234470,-151.0,0.00013087,2]
[420527426,1776250234482,-151.0,0.00013087,2]
[420527427,1776250234495,-223.30461589,0.00013087,2]
[420527428,1776250234506,-151.0,0.00013087,2]
[420527429,1776250234518,-151.0,0.00013087,2]
[420527430,1776250234530,-151.0,0.00013087,2]
[420527431,1776250234549,-151.0,0.00013087,2]
[420527432,1776250234561,-151.0,0.00013087,2]
[420527433,1776250234573,-151.0,0.00013087,2]
[420527434,1776250234593,-151.0,0.00013087,2]
[420527435,1776250234606,-151.0,0.00013087,2]
[420527436,1776250234618,-217.1444,0.00013087,2]
[420527437,1776250234639,-71935.9547063,0.00013088,2]
[420527438,1776250236931,-500.0,0.00013085,2]
[420527439,1776250236943,-500.0,0.00013085,2]
[420527440,1776250236965,-510.31,0.00013088,2]
[420527441,1776250236982,-1295.79975787,0.00013088,2]
[420527442,1776250236998,-780.47237278,0.00013088,2]
[420527443,1776250237171,-240.37736871,0.00013085,2]
[420527444,1776250237190,-119.30203714,0.00013088,2]
[420527466,1776250239035,-2500.0,0.00012888,2]
[420527468,1776250239045,-500.0,0.00013085,2]
[420527470,1776250239060,-500.0,0.00013085,2]
[420527472,1776250239072,-500.0,0.00013085,2]
[420527474,1776250239082,-500.0,0.00013085,2]
[420527476,1776250239095,-500.0,0.00013085,2]
[420527478,1776250239110,-500.0,0.00013085,2]
[420527480,1776250239120,-500.0,0.00013085,2]
[420527482,1776250239131,-500.0,0.00013085,2]
[420527484,1776250239148,-500.0,0.00013085,2]
[420527486,1776250239161,-500.0,0.00013085,2]
[420527487,1776250239172,-500.0,0.00013085,2]
[420527489,1776250239187,-500.0,0.00013085,2]
[420527491,1776250239201,-500.0,0.00013085,2]
[420527493,1776250239211,-500.0,0.00013085,2]
[420527495,1776250239226,-500.0,0.00013085,2]
[420527497,1776250239246,-500.0,0.00013085,2]
[420527499,1776250239258,-500.0,0.00013085,2]
[420527501,1776250239273,-172.34133077,0.00013085,2]
[420527504,1776250239310,-327.65866923,0.00013085,2]
[420527506,1776250239343,-500.0,0.00013085,2]
[420527508,1776250239358,-500.0,0.00013085,2]
[420527510,1776250239382,-500.0,0.00013085,2]
[420527512,1776250239396,-500.0,0.00013085,2]
[420527514,1776250239422,-500.0,0.00013085,2]
[420527516,1776250239441,-28236.56358245,0.00013088,2]
[420527522,1776250239546,-1503.17647077,0.00013088,2]
[420527525,1776250239582,-400.0,0.00013088,2]
[420527564,1776250241136,-2090.40897658,0.00013088,2]
[420527589,1776250246860,-3746.03658828,0.00013088,2]
[420527590,1776250246894,-2874.77645003,0.00013088,2]
[420527592,1776250249208,-600.0,0.00013088,2]
[420527593,1776250249239,-299.11968399,0.00013088,2]
[420527600,1776250851764,200.74,0.000165,30]
[420527604,1776250993143,-1181.6074,0.000107,2]
[420527605,1776251043050,-1610.8631,0.000107,2]
[420527634,1776251432876,-204.0,9.989e-05,2]
[420527635,1776251432887,-62.38014877,9.989e-05,2]
[420527636,1776251432902,-141.61985123,9.989e-05,2]
[420527637,1776251432912,-392.4467169,0.000107,2]
[420527638,1776251433094,-5692.24132654,0.000107,2]
[420527639,1776251433105,-195.0,0.00010988,2]
[420527640,1776251433116,-200.0,0.0001144,2]
[420527641,1776251433126,-536.1872836,0.0001177,2]
[420527642,1776251433136,-391.53,0.00011861,2]
[420527643,1776251433146,-669.22,0.00012039,2]
[420527644,1776251433157,-5303.3686,0.00012042,2]
[420527645,1776251433167,-2264.842,0.00012043,2]
[420527646,1776251433177,-173.89,0.00012043,2]
[420527647,1776251433193,-1000.0,0.00012043,2]
[420527648,1776251433204,-174.34,0.00012054,2]
[420527649,1776251433219,-357.4296725,0.00012096,2]
[420527650,1776251433232,-4028.8359266,0.00012096,2]
[420527651,1776251433243,-160.05645888,0.00012096,2]
[420527652,1776251433255,-3283.9254987,0.00012096,2]
[420527653,1776251433271,-150.0,0.000121,2]
[420527654,1776251433281,-150.0,0.00012133,2]
[420527655,1776251433293,-151.0,0.00012136,2]
[420527656,1776251433316,-500.0,0.00012136,2]
[420527657,1776251433327,-151.0,0.00012136,2]
[420527658,1776251433347,-500.0,0.00012136,2]
[420527659,1776251433364,-201.76261651,0.00012136,2]
[420527660,1776251433377,-151.0,0.00012136,2]
[420527661,1776251433394,-500.0,0.00012136,2]
[420527662,1776251433410,-151.0,0.00012136,2]
[420527663,1776251433423,-500.0,0.00012136,2]
[420527664,1776251433440,-151.0,0.00012136,2]
[420527665,1776251433457,-500.0,0.00012136,2]
[420527666,1776251433478,-151.0,0.00012136,2]
[420527667,1776251433490,-500.0,0.00012136,2]
[420527668,1776251433506,-151.0,0.00012136,2]
[420527669,1776251433526,-500.0,0.00012136,2]
[420527670,1776251433544,-500.0,0.00012136,2]
[420527671,1776251433558,-151.0,0.00012136,2]
[420527672,1776251433576,-500.0,0.00012136,2]
[420527673,1776251433591,-151.0,0.00012136,2]
[420527674,1776251433609,-500.0,0.00012136,2]
[420527675,1776251433625,-151.0,0.00012136,2]
[420527676,1776251433641,-500.0,0.00012136,2]
[420527677,1776251433654,-151.0,0.00012136,2]
[420527678,1776251433676,-250.0,0.00012142,2]
[420527679,1776251433690,-765.18375294,0.00012142,2]
[420527680,1776251433705,-765.18375294,0.00012142,2]
[420527681,1776251433729,-765.18375294,0.00012142,2]
[420527682,1776251433749,-765.18375294,0.00012142,2]
[420527683,1776251433773,-765.18375294,0.00012142,2]
[420527684,1776251433791,-765.18375294,0.00012142,2]
[420527685,1776251433815,-765.18375294,0.00012142,2]
[420527686,1776251433830,-765.18375294,0.00012142,2]
[420527687,1776251433854,-765.18375294,0.00012142,2]
[420527688,1776251433889,-765.18375294,0.00012142,2]
[420527689,1776251433923,-765.18375294,0.00012142,2]
[420527690,1776251433947,-765.18375294,0.00012142,2]
[420527691,1776251433972,-765.18375294,0.00012142,2]
[420527692,1776251433983,-765.18375294,0.00012142,2]
[420527693,1776251434002,-765.18375294,0.00012142,2]
[420527694,1776251434039,-769.3574825,0.00012142,2]
[420527695,1776251434071,-769.3574825,0.00012142,2]
[420527696,1776251434095,-769.3574825,0.00012142,2]
[420527697,1776251434124,-769.3574825,0.00012142,2]
[420527698,1776251434148,-769.3574825,0.00012142,2]
[420527699,1776251434172,-769.3574825,0.00012142,2]
[420527700,1776251434208,-769.3574825,0.00012142,2]
[420527701,1776251434225,-769.3574825,0.00012142,2]
[420527702,1776251434256,-769.3574825,0.00012142,2]
[420527703,1776251434273,-769.3574825,0.00012142,2]
[420527704,1776251434304,-769.3574825,0.00012142,2]
[420527705,1776251434320,-769.3574825,0.00012142,2]
[420527706,1776251434345,-769.3574825,0.00012142,2]
[420527707,1776251434363,-769.3574825,0.00012142,2]
[420527708,1776251434385,-769.3574825,0.00012142,2]
[420527709,1776251434402,-769.3574825,0.00012142,2]
[420527710,1776251434422,-769.3574825,0.00012142,2]
[420527711,1776251434440,-769.3574825,0.00012142,2]
[420527712,1776251434454,-769.3574825,0.00012142,2]
[420527713,1776251434470,-769.3574825,0.00012142,2]
[420527714,1776251434486,-769.3574825,0.00012142,2]
[420527715,1776251434504,-769.3574825,0.00012142,2]
[420527716,1776251434525,-769.3574825,0.00012142,2]
[420527717,1776251434538,-769.3574825,0.00012142,2]
[420527718,1776251434552,-769.3574825,0.00012142,2]
[420527719,1776251434569,-769.3574825,0.00012142,2]
[420527720,1776251434584,-769.3574825,0.00012142,2]
[420527721,1776251434597,-769.3574825,0.00012142,2]
[420527722,1776251434614,-769.3574825,0.00012142,2]
[420527723,1776251434631,-769.3574825,0.00012142,2]
[420527724,1776251434646,-769.3574825,0.00012142,2]
[420527725,1776251434670,-769.3574825,0.00012142,2]
[420527726,1776251434682,-769.3574825,0.00012142,2]
[420527727,1776251434706,-769.3574825,0.00012142,2]
[420527728,1776251434722,-769.3574825,0.00012142,2]
[420527729,1776251434742,-769.3574825,0.00012142,2]
[420527730,1776251434758,-769.3574825,0.00012142,2]
[420527731,1776251434786,-319.86031457,0.00012142,2]
[420527732,1776251434808,-769.3574825,0.00012142,2]
[420527733,1776251434826,-751.72637352,0.00012142,2]
[420527734,1776251434839,-751.72637352,0.00012142,2]
[420527735,1776251434860,-751.72637352,0.00012142,2]
[420527736,1776251434874,-751.72637352,0.00012142,2]
[420527737,1776251434886,-751.72637352,0.00012142,2]
[420527738,1776251434918,-751.72637352,0.00012142,2]
[420527739,1776251434929,-751.72637352,0.00012142,2]
[420527740,1776251434970,-751.72637352,0.00012142,2]
[420527741,1776251434996,-751.72637352,0.00012142,2]
[420527742,1776251435017,-751.72637352,0.00012142,2]
[420527743,1776251435043,-751.72637352,0.00012142,2]
[420527744,1776251435060,-751.72637352,0.00012142,2]
[420527745,1776251435079,-751.72637352,0.00012142,2]
[420527746,1776251435101,-751.72637352,0.00012142,2]
[420527747,1776251435115,-751.72637352,0.00012142,2]
[420527748,1776251435133,-751.72637352,0.00012142,2]
[420527749,1776251435150,-751.72637352,0.00012142,2]
[420527750,1776251435171,-8.48558706,0.00012142,2]
[420527837,1776251440482,-743.24078646,0.00012142,2]
[420527838,1776251440494,-458.81317397,0.00012142,2]
[420527839,1776251440507,-292.91319955,0.00012142,2]
[420527840,1776251440523,-751.72637352,0.00012142,2]
[420527841,1776251440534,-232.6318173,0.00012142,2]
[420527842,1776251440551,-324.96000443,0.00012142,2]
[420527843,1776251440569,-194.13455179,0.00012142,2]
[420527844,1776251440581,-751.72637352,0.00012142,2]
[420527845,1776251440591,-674.13907469,0.00012142,2]
[420527846,1776251440846,-77.58729883,0.00012142,2]
[420527847,1776251440856,-751.72637352,0.00012142,2]
[420527848,1776251440865,-136.82643034,0.00012142,2]
[420527849,1776251440919,-705.24783178,0.00012133,2]
[420527850,1776251440929,-614.89994318,0.00012142,2]
[420527851,1776251440941,-751.72637352,0.00012142,2]
[420527852,1776251440953,-500.0,0.00012142,2]
[420527853,1776251440965,-500.0,0.00012142,2]
[420527854,1776251440980,-500.0,0.00012142,2]
[420527855,1776251440989,-563.23249505,0.00012142,2]
[420527856,1776251441005,-500.0,0.00012142,2]
[420527857,1776251441014,-789.31269219,0.00012142,2]
[420527858,1776251441027,-789.31269219,0.00012142,2]